[Event "EYTCC U18 Girls 2019"]
[Site "Pardubice"]
[Date "2019.07.13"]
[Round "3.26"]
[White "Antova, Gabriela"]
[Black "Schneider, Jana"]
[Result "0-1"]
[ECO "D37"]
[WhiteElo "2257"]
[BlackElo "2216"]
[Annotator "NA"]
[PlyCount "108"]
[EventDate "2019.07.11"]
[EventType "swiss"]
[EventCountry "CZE"]
[SourceTitle "playchess.com"]
[Source "ChessBase"]
[SourceQuality "1"]
[WhiteTeam "Bulgaria"]
[BlackTeam "Germany"]
[WhiteTeamCountry "BUL"]
[BlackTeamCountry "GER"]
[TimeControl "40/5400+30:1800+30"]

1. d4 {[%emt 0:00:00]} Nf6 {[%emt 0:00:00]} 2. c4 {[%emt 0:00:00]} e6 {[%emt 0:00:00]} 3. Nf3 {[%emt 0:00:00]} d5 {[%emt 0:00:00]} 4. Nc3 {[%emt 0:00:00]} Be7 {[%emt 0:00:00]} 5. Bf4 {[%emt 0:00:06]} O-O {[%emt 0:00:07]} 6. e3 {[%emt 0:00:06]} c5 {[%emt 0:00:09]} 7. dxc5 {[%emt 0:00:59]} Bxc5 {[%emt 0:00:08]} 8. Qc2 {[%emt 0:00:16]} Nc6 {[%emt 0:00:15]} 9. a3 {[%emt 0:00:08]} Re8 {[%emt 0:00:16]} 10. Rd1 {[%emt 0:20:57]} e5 {[%emt 0:01:34]} 11. Bg5 {[%emt 0:02:29]} d4 {[%emt 0:00:28]} 12. Nd5 {[%emt 0:11:16]} Be7 {[%emt 0:03:01]} 13. Bxf6 {[%emt 0:07:09]} Bxf6 {[%emt 0:00:35]} 14. Bd3 {[%emt 0:03:25]} g6 {[%emt 0:02:46]} 15. O-O {[%emt 0:07:27]} Bg4 {[%emt 0:02:50]} 16. Nxf6+ {[%emt 0:03:15]} Qxf6 {[%emt 0:00:10]} 17. Be4 {[%emt 0:00:04]} Qe7 {[%emt 0:15:44]} 18. Rfe1 {[%emt 0:07:00]} Bxf3 {[%emt 0:01:25]} 19. Bxf3 {[%emt 0:00:54]} d3 {[%emt 0:01:20]} 20. Qxd3 {[%emt 0:03:50]} e4 {[%emt 0:00:07]} 21. Bxe4 {[%emt 0:00:26]} Qxe4 {[%emt 0:00:07]} 22. Qxe4 {[%emt 0:01:11]} Rxe4 {[%emt 0:00:06]} 23. Rd7 {[%emt 0:00:02]} Re7 {[%emt 0:01:37]} 24. Rd5 {[%emt 0:00:48]} Kf8 {[%emt 0:03:13]} 25. b4 {[%emt 0:02:53]} Ke8 {[%emt 0:02:19]} 26. h3 {[%emt 0:02:38]} Rd8 {[%emt 0:01:16]} 27. Rc1 {[%emt 0:00:35]} Red7 {[%emt 0:02:21]} 28. e4 {[%emt 0:00:54]} Ne7 {[%emt 0:02:19]} 29. Rxd7 {[%emt 0:01:56]} Rxd7 {[%emt 0:00:38]} 30. Rc3 {[%emt 0:00:54]} Rd1+ {[%emt 0:03:44]} 31. Kh2 {[%emt 0:00:00]} Rd4 {[%emt 0:00:31]} 32. f3 {[%emt 0:00:25]} Nc6 {[%emt 0:00:51]} 33. c5 {[%emt 0:02:08]} Ne5 {[%emt 0:00:59]} 34. Rc2 {[%emt 0:02:51]} Kd7 {[%emt 0:08:42]} 35. Kg3 {[%emt 0:05:02]} Kc6 {[%emt 0:01:15]} 36. Kf4 {[%emt 0:01:30]} f6 {[%emt 0:00:42]} 37. h4 {[%emt 0:00:15]} Kb5 {[%emt 0:01:33]} 38. h5 {[%emt 0:04:41]} Ka4 {[%emt 0:01:49]} 39. c6 {[%emt 0:06:21]} bxc6 {[%emt 0:01:24]} 40. Ke3 {[%emt 0:01:03]} Rd3+ {[%emt 0:01:42]} 41. Ke2 {[%emt 0:30:06]} Rxa3 {[%emt 0:30:54]} 42. hxg6 {[%emt 0:01:29]} hxg6 {[%emt 0:00:10]} 43. f4 {[%emt 0:00:10]} Nd3 {[%emt 0:02:07]} 44. Rxc6 {[%emt 0:00:14]} Nxf4+ {[%emt 0:00:49]} 45. Kd2 {[%emt 0:03:10]} Nh5 {[%emt 0:02:00]} 46. e5 {[%emt 0:00:00]} fxe5 {[%emt 0:00:00]} 47. Rxg6 {[%emt 0:00:00]} Rg3 {[%emt 0:00:00]} 48. Ra6+ {[%emt 0:00:00]} Kxb4 {[%emt 0:00:00]} 49. Rxa7 {[%emt 0:00:00]} Kc4 {[%emt 0:00:00]} 50. Ra5 {[%emt 0:00:00]} Kd4 {[%emt 0:00:00]} 51. Ra4+ {[%emt 0:00:00]} Kd5 {[%emt 0:00:00]} 52. Ke2 {[%emt 0:00:00]} Rxg2+ {[%emt 0:00:00]} 53. Ke3 {[%emt 0:00:00]} Rg3+ {[%emt 0:00:00]} 54. Kf2 {[%emt 0:00:00]} Rb3 {[%emt 0:00:00]} 0-1

[Event "EYTCC U18 Girls 2019"]
[Site "Pardubice"]
[Date "2019.07.13"]
[Round "3.27"]
[White "Kucharska, Honorata"]
[Black "Lehaci, Miruna-Daria"]
[Result "1/2-1/2"]
[ECO "C01"]
[WhiteElo "2054"]
[BlackElo "2201"]
[Annotator "NA"]
[PlyCount "123"]
[EventDate "2019.07.11"]
[EventType "swiss"]
[EventCountry "CZE"]
[SourceTitle "playchess.com"]
[Source "ChessBase"]
[SourceQuality "1"]
[WhiteTeam "Poland"]
[BlackTeam "Romania"]
[WhiteTeamCountry "POL"]
[BlackTeamCountry "ROU"]
[TimeControl "40/5400+30:1800+30"]

1. e4 {[%emt 0:00:00]} e6 {[%emt 0:00:00]} 2. d4 {[%emt 0:00:00]} d5 {[%emt 0:00:00]} 3. exd5 {[%emt 0:00:03]} exd5 {[%emt 0:00:00]} 4. Nc3 {[%emt 0:00:05]} Nc6 {[%emt 0:00:08]} 5. Bb5 {[%emt 0:01:08]} Bb4 {[%emt 0:00:50]} 6. Nge2 {[%emt 0:01:53]} Nge7 {[%emt 0:01:51]} 7. O-O {[%emt 0:01:44]} a6 {[%emt 0:13:33]} 8. Bd3 {[%emt 0:04:38]} O-O {[%emt 0:01:08]} 9. Be3 {[%emt 0:04:45]} Bf5 {[%emt 0:04:54]} 10. Ng3 {[%emt 0:04:30]} Bxd3 {[%emt 0:01:04]} 11. Qxd3 {[%emt 0:00:11]} Qd7 {[%emt 0:03:21]} 12. Nce2 {[%emt 0:09:24]} Ng6 {[%emt 0:07:15]} 13. b3 {[%emt 0:06:30]} Nce7 {[%emt 0:08:42]} 14. a3 {[%emt 0:04:38]} Ba5 {[%emt 0:03:38]} 15. c4 {[%emt 0:01:05]} dxc4 {[%emt 0:01:26]} 16. bxc4 {[%emt 0:00:30]} c6 {[%emt 0:01:46]} 17. Rfd1 {[%emt 0:04:00]} Rfd8 {[%emt 0:04:16]} 18. Rac1 {[%emt 0:05:32]} b5 {[%emt 0:02:39]} 19. Qc2 {[%emt 0:03:21]} Rac8 {[%emt 0:04:38]} 20. Ne4 {[%emt 0:05:11]} Bb6 {[%emt 0:06:05]} 21. Bg5 {[%emt 0:06:32]} Qa7 {[%emt 0:04:24]} 22. c5 {[%emt 0:01:17]} Bc7 {[%emt 0:00:57]} 23. Bxe7 {[%emt 0:06:42]} Nxe7 {[%emt 0:00:09]} 24. Ng5 {[%emt 0:00:11]} g6 {[%emt 0:02:43]} 25. Qb3 {[%emt 0:03:11]} Rd5 {[%emt 0:05:33]} 26. Ne4 {[%emt 0:01:03]} Kg7 {[%emt 0:01:21]} 27. N2g3 {[%emt 0:01:55]} Bf4 {[%emt 0:03:31]} 28. Rb1 {[%emt 0:02:04]} f5 {[%emt 0:05:48]} 29. Nc3 {[%emt 0:02:56]} Rd7 {[%emt 0:00:06]} 30. Nf1 {[%emt 0:02:45]} Rcd8 {[%emt 0:01:23]} 31. Ne2 {[%emt 0:01:28]} Bg5 {[%emt 0:00:27]} 32. Qg3 {[%emt 0:01:16]} Bf6 {[%emt 0:04:22]} 33. Nf4 {[%emt 0:00:22]} Kh8 {[%emt 0:02:05]} 34. Ne6 {[%emt 0:05:47]} Re8 {[%emt 0:01:11]} 35. Ne3 {[%emt 0:02:35]} Ng8 {[%emt 0:01:48]} 36. Ng5 {[%emt 0:03:46]} Rxd4 {[%emt 0:01:57]} 37. Rxd4 {[%emt 0:01:41]} Bxd4 {[%emt 0:00:03]} 38. Rc1 {[%emt 0:02:26]} Bxc5 {[%emt 0:02:02]} 39. Rc3 {[%emt 0:00:49]} Nf6 {[%emt 0:00:45]} 40. h3 {[%emt 0:00:39]} Bxe3 {[%emt 0:01:05]} 41. Rxe3 {[%emt 0:30:56]} Rxe3 {[%emt 0:02:45]} 42. fxe3 {[%emt 0:00:00]} Qe7 {[%emt 0:00:18]} 43. Kh1 {[%emt 0:00:00]} Kg7 {[%emt 0:01:26]} 44. Qb8 {[%emt 0:00:00]} Nd5 {[%emt 0:04:04]} 45. Nf3 {[%emt 0:00:00]} c5 {[%emt 0:01:06]} 46. Qa8 {[%emt 0:00:00]} Nc7 {[%emt 0:01:02]} 47. Qc6 {[%emt 0:00:00]} Kh6 {[%emt 0:08:08]} 48. Kh2 {[%emt 0:00:00]} Ne8 {[%emt 0:01:14]} 49. Kh1 {[%emt 0:00:00]} Qxe3 {[%emt 0:01:54]} 50. Qxa6 {[%emt 0:00:00]} Qe2 {[%emt 0:01:28]} 51. Qb7 {[%emt 0:00:00]} Ng7 {[%emt 0:04:56]} 52. Qc7 {[%emt 0:00:00]} Ne6 {[%emt 0:00:15]} 53. Qd6 {[%emt 0:00:00]} Qe3 {[%emt 0:02:24]} 54. Qe7 {[%emt 0:00:00]} Qc1+ {[%emt 0:01:29]} 55. Kh2 {[%emt 0:00:00]} Qf4+ {[%emt 0:00:16]} 56. Kh1 {[%emt 0:00:03]} Qe4 {[%emt 0:00:18]} 57. Qd6 {[%emt 0:03:37]} c4 {[%emt 0:01:18]} 58. Qb4 {[%emt 0:02:18]} Qd5 {[%emt 0:02:22]} 59. Qe1 {[%emt 0:01:37]} Qe4 {[%emt 0:00:32]} 60. Qb4 {[%emt 0:00:03]} Qe2 {[%emt 0:01:05]} 61. Qe7 {[%emt 0:00:49]} Qe4 {[%emt 0:01:08]} 62. Qb4 1/2-1/2

[Event "EYTCC U18 Girls 2019"]
[Site "Pardubice"]
[Date "2019.07.13"]
[Round "3.28"]
[White "Ciolacu, Alessia-Mihaela"]
[Black "Malicka, Maria"]
[Result "1/2-1/2"]
[ECO "A06"]
[WhiteElo "2199"]
[BlackElo "2115"]
[Annotator "NA"]
[PlyCount "97"]
[EventDate "2019.07.11"]
[EventType "swiss"]
[EventCountry "CZE"]
[SourceTitle "playchess.com"]
[Source "ChessBase"]
[SourceQuality "1"]
[WhiteTeam "Romania"]
[BlackTeam "Poland"]
[WhiteTeamCountry "ROU"]
[BlackTeamCountry "POL"]
[TimeControl "40/5400+30:1800+30"]

1. Nf3 {[%emt 0:00:00]} d5 {[%emt 0:00:00]} 2. e3 {[%emt 0:00:00]} Nf6 {[%emt 0:00:16]} 3. c4 {[%emt 0:00:00]} e6 {[%emt 0:00:21]} 4. b3 {[%emt 0:00:05]} Be7 {[%emt 0:00:09]} 5. Bb2 {[%emt 0:00:09]} O-O {[%emt 0:00:15]} 6. Be2 {[%emt 0:03:21]} c5 {[%emt 0:00:12]} 7. cxd5 {[%emt 0:01:30]} Nxd5 {[%emt 0:00:12]} 8. O-O {[%emt 0:03:43]} Nc6 {[%emt 0:01:16]} 9. Nc3 {[%emt 0:19:46]} Nxc3 {[%emt 0:03:26]} 10. Bxc3 {[%emt 0:00:24]} b6 {[%emt 0:01:14]} 11. Rc1 {[%emt 0:04:29]} Bb7 {[%emt 0:01:31]} 12. Qc2 {[%emt 0:01:25]} Bf6 {[%emt 0:02:28]} 13. Rfd1 {[%emt 0:01:38]} Rc8 {[%emt 0:03:07]} 14. Qb2 {[%emt 0:12:03]} Bxc3 {[%emt 0:01:03]} 15. dxc3 {[%emt 0:01:22]} Qe7 {[%emt 0:03:36]} 16. Bd3 {[%emt 0:04:02]} Rfd8 {[%emt 0:05:30]} 17. Rd2 {[%emt 0:03:43]} Na5 {[%emt 0:19:28]} 18. Rcd1 {[%emt 0:04:40]} Bxf3 {[%emt 0:05:09]} 19. gxf3 {[%emt 0:00:19]} Nc6 {[%emt 0:02:50]} 20. f4 {[%emt 0:09:52]} Qh4 {[%emt 0:09:18]} 21. Kh1 {[%emt 0:04:28]} f5 {[%emt 0:09:55]} 22. Bb5 {[%emt 0:07:51]} Rxd2 {[%emt 0:07:39]} 23. Qxd2 {[%emt 0:02:05]} Rd8 {[%emt 0:01:14]} 24. Qe2 {[%emt 0:00:13]} Rxd1+ {[%emt 0:00:31]} 25. Qxd1 {[%emt 0:00:06]} Qd8 {[%emt 0:00:18]} 26. Qf3 {[%emt 0:03:34]} Ne7 {[%emt 0:00:08]} 27. Bc4 {[%emt 0:00:25]} Nd5 {[%emt 0:04:46]} 28. e4 {[%emt 0:01:01]} fxe4 {[%emt 0:00:40]} 29. Qxe4 {[%emt 0:00:06]} Nxc3 {[%emt 0:00:21]} 30. Qxe6+ {[%emt 0:00:45]} Kh8 {[%emt 0:00:02]} 31. a4 {[%emt 0:00:44]} h6 {[%emt 0:04:56]} 32. Kg2 {[%emt 0:01:12]} Qa8+ {[%emt 0:01:10]} 33. Kg1 {[%emt 0:00:12]} Qd8 {[%emt 0:00:12]} 34. Qg6 {[%emt 0:01:07]} Qd1+ {[%emt 0:04:39]} 35. Kg2 {[%emt 0:00:08]} Qd8 {[%emt 0:00:19]} 36. Kg3 {[%emt 0:04:49]} Qa8 {[%emt 0:04:06]} 37. f3 {[%emt 0:01:35]} Qd8 {[%emt 0:03:07]} 38. Qe6 {[%emt 0:02:04]} Nb1 {[%emt 0:02:43]} 39. Kg4 {[%emt 0:02:01]} Nd2 {[%emt 0:00:28]} 40. Bd5 {[%emt 0:01:30]} Nf1 {[%emt 0:00:40]} 41. Kh3 {[%emt 0:05:16]} Ne3 {[%emt 0:04:14]} 42. Be4 {[%emt 0:01:44]} Qg8 {[%emt 0:01:13]} 43. Qg6 {[%emt 0:06:48]} Nd5 {[%emt 0:05:58]} 44. Bxd5 {[%emt 0:01:51]} Qxd5 {[%emt 0:00:02]} 45. Qe8+ {[%emt 0:00:13]} Qg8 {[%emt 0:04:56]} 46. Qxg8+ {[%emt 0:03:19]} Kxg8 {[%emt 0:00:01]} 47. Kg4 {[%emt 0:00:21]} Kf7 {[%emt 0:13:42]} 48. Kf5 {[%emt 0:00:16]} a6 {[%emt 0:00:51]} 49. Ke4 1/2-1/2

[Event "EYTCC U18 Girls 2019"]
[Site "Pardubice"]
[Date "2019.07.13"]
[Round "3.29"]
[White "Sahin, Hayrun Nisa"]
[Black "Kopcova, Ludmila"]
[Result "1-0"]
[ECO "C49"]
[WhiteElo "1772"]
[BlackElo "1980"]
[Annotator "NA"]
[PlyCount "77"]
[EventDate "2019.07.11"]
[EventType "swiss"]
[EventCountry "CZE"]
[SourceTitle "playchess.com"]
[Source "ChessBase"]
[SourceQuality "1"]
[WhiteTeam "Turkey"]
[BlackTeam "Czech Republic"]
[WhiteTeamCountry "TUR"]
[BlackTeamCountry "CZE"]
[TimeControl "40/5400+30:1800+30"]

1. e4 {[%emt 0:00:00]} e5 {[%emt 0:00:00]} 2. Nf3 {[%emt 0:00:07]} Nc6 {[%emt 0:00:00]} 3. Nc3 {[%emt 0:00:39]} Nf6 {[%emt 0:00:00]} 4. Bb5 {[%emt 0:00:04]} Bb4 {[%emt 0:00:07]} 5. O-O {[%emt 0:00:10]} O-O {[%emt 0:00:20]} 6. d3 {[%emt 0:00:04]} Bxc3 {[%emt 0:00:26]} 7. bxc3 {[%emt 0:00:05]} d6 {[%emt 0:00:04]} 8. Bg5 {[%emt 0:00:11]} Qe7 {[%emt 0:00:24]} 9. Re1 {[%emt 0:00:36]} Nd8 {[%emt 0:01:16]} 10. d4 {[%emt 0:00:23]} Ne6 {[%emt 0:00:39]} 11. Bc1 {[%emt 0:00:30]} Rd8 {[%emt 0:04:42]} 12. g3 {[%emt 0:02:11]} c5 {[%emt 0:01:21]} 13. Bf1 {[%emt 0:00:19]} h6 {[%emt 0:03:57]} 14. Nh4 {[%emt 0:13:23]} Nf8 {[%emt 0:04:59]} 15. h3 {[%emt 0:07:31]} N6h7 {[%emt 0:14:39]} 16. Qf3 {[%emt 0:08:14]} Rb8 {[%emt 0:15:19]} 17. Nf5 {[%emt 0:05:46]} Qf6 {[%emt 0:06:29]} 18. d5 {[%emt 0:15:27]} Ng6 {[%emt 0:13:40]} 19. Bd3 {[%emt 0:03:59]} Ne7 {[%emt 0:06:14]} 20. Nxe7+ {[%emt 0:04:06]} Qxe7 {[%emt 0:00:04]} 21. Qg2 {[%emt 0:00:36]} Qd7 {[%emt 0:07:58]} 22. Kh2 {[%emt 0:03:05]} Ng5 {[%emt 0:01:35]} 23. Bxg5 {[%emt 0:03:36]} hxg5 {[%emt 0:00:01]} 24. f4 {[%emt 0:00:21]} gxf4 {[%emt 0:01:06]} 25. gxf4 {[%emt 0:00:09]} exf4 {[%emt 0:00:35]} 26. Rg1 {[%emt 0:01:47]} f6 {[%emt 0:01:20]} 27. Raf1 {[%emt 0:00:34]} Re8 {[%emt 0:04:22]} 28. Bb5 {[%emt 0:13:37]} Qxh3+ {[%emt 0:03:08]} 29. Qxh3 {[%emt 0:00:06]} Bxh3 {[%emt 0:00:05]} 30. Kxh3 {[%emt 0:00:01]} Rxe4 {[%emt 0:00:42]} 31. Kg4 {[%emt 0:00:44]} a6 {[%emt 0:02:19]} 32. Bd7 {[%emt 0:00:56]} Re2 {[%emt 0:00:46]} 33. Rh1 {[%emt 0:04:20]} g5 {[%emt 0:01:14]} 34. Rh6 {[%emt 0:00:41]} Rf8 {[%emt 0:03:47]} 35. Kf5 {[%emt 0:04:23]} Re5+ {[%emt 0:02:42]} 36. Kg6 {[%emt 0:00:11]} g4 {[%emt 0:00:27]} 37. Be6+ {[%emt 0:00:19]} Rxe6 {[%emt 0:00:20]} 38. dxe6 {[%emt 0:00:05]} f3 {[%emt 0:00:18]} 39. Rfh1 {[%emt 0:00:29]} 1-0

[Event "EYTCC U18 Girls 2019"]
[Site "Pardubice"]
[Date "2019.07.13"]
[Round "3.30"]
[White "Gresova, Zuzana"]
[Black "Aydin, Gulenay"]
[Result "1/2-1/2"]
[ECO "B70"]
[WhiteElo "1919"]
[BlackElo "1934"]
[Annotator "NA"]
[PlyCount "95"]
[EventDate "2019.07.11"]
[EventType "swiss"]
[EventCountry "CZE"]
[SourceTitle "playchess.com"]
[Source "ChessBase"]
[SourceQuality "1"]
[WhiteTeam "Czech Republic"]
[BlackTeam "Turkey"]
[WhiteTeamCountry "CZE"]
[BlackTeamCountry "TUR"]
[TimeControl "40/5400+30:1800+30"]

1. e4 {[%emt 0:00:00]} c5 {[%emt 0:00:00]} 2. Nf3 {[%emt 0:00:00]} d6 {[%emt 0:00:00]} 3. d4 {[%emt 0:00:00]} cxd4 {[%emt 0:00:00]} 4. Nxd4 {[%emt 0:00:00]} Nf6 {[%emt 0:00:08]} 5. Nc3 {[%emt 0:00:26]} g6 {[%emt 0:00:20]} 6. Be2 {[%emt 0:00:44]} Bg7 {[%emt 0:01:00]} 7. O-O {[%emt 0:00:54]} O-O {[%emt 0:00:31]} 8. Bg5 {[%emt 0:02:02]} Nc6 {[%emt 0:00:22]} 9. Nb3 {[%emt 0:00:27]} a6 {[%emt 0:00:56]} 10. Kh1 {[%emt 0:02:47]} b5 {[%emt 0:04:24]} 11. a3 {[%emt 0:03:33]} Bb7 {[%emt 0:10:57]} 12. f4 {[%emt 0:02:56]} Rc8 {[%emt 0:10:36]} 13. Bf3 {[%emt 0:03:09]} Nd7 {[%emt 0:02:47]} 14. Qe2 {[%emt 0:08:38]} Nb6 {[%emt 0:03:51]} 15. Nd5 {[%emt 0:11:25]} Nc4 {[%emt 0:19:51]} 16. c3 {[%emt 0:03:34]} Re8 {[%emt 0:17:41]} 17. Rad1 {[%emt 0:03:19]} f6 {[%emt 0:03:03]} 18. Bh4 {[%emt 0:01:47]} e6 {[%emt 0:04:59]} 19. Ne3 {[%emt 0:04:31]} Nxe3 {[%emt 0:00:54]} 20. Qxe3 {[%emt 0:00:38]} Qc7 {[%emt 0:01:33]} 21. Rd3 {[%emt 0:09:42]} Rcd8 {[%emt 0:01:25]} 22. Rfd1 {[%emt 0:01:03]} Ne7 {[%emt 0:04:46]} 23. Nd4 {[%emt 0:01:57]} Nc8 {[%emt 0:02:37]} 24. e5 {[%emt 0:04:55]} Bxf3 {[%emt 0:04:42]} 25. gxf3 {[%emt 0:05:13]} dxe5 {[%emt 0:01:25]} 26. fxe5 {[%emt 0:00:43]} Qf7 {[%emt 0:00:25]} 27. Re1 {[%emt 0:02:20]} fxe5 {[%emt 0:01:59]} 28. Nc6 {[%emt 0:07:08]} Rxd3 {[%emt 0:00:22]} 29. Qxd3 {[%emt 0:00:10]} Qf5 {[%emt 0:01:27]} 30. Qe2 {[%emt 0:05:21]} Qf7 {[%emt 0:01:11]} 31. Bg3 {[%emt 0:01:32]} Rf8 {[%emt 0:00:34]} 32. Kg2 {[%emt 0:03:59]} Ne7 {[%emt 0:00:06]} 33. Nxe7+ {[%emt 0:01:29]} Qxe7 {[%emt 0:00:02]} 34. Bxe5 {[%emt 0:00:54]} Bxe5 {[%emt 0:00:05]} 35. Qxe5 {[%emt 0:00:13]} Re8 {[%emt 0:00:38]} 36. Rd1 {[%emt 0:00:52]} Rd8 {[%emt 0:01:34]} 37. Rxd8+ {[%emt 0:02:55]} Qxd8 {[%emt 0:00:02]} 38. Qxe6+ {[%emt 0:00:17]} Kf8 {[%emt 0:00:07]} 39. Qe3 {[%emt 0:01:50]} Qd5 {[%emt 0:01:12]} 40. Kg3 {[%emt 0:02:16]} Kg8 {[%emt 0:00:40]} 41. Qe8+ {[%emt 0:05:34]} Kg7 {[%emt 0:01:36]} 42. Qe7+ {[%emt 0:00:34]} Kg8 {[%emt 0:00:16]} 43. Qe8+ {[%emt 0:08:26]} Kg7 {[%emt 0:01:06]} 44. Qe3 {[%emt 0:00:35]} Kg8 {[%emt 0:00:49]} 45. f4 {[%emt 0:00:41]} Qd1 {[%emt 0:06:11]} 46. Qf2 {[%emt 0:03:17]} Qd3+ {[%emt 0:04:49]} 47. Kg2 {[%emt 0:03:30]} Qd5+ {[%emt 0:01:50]} 48. Kg3 {[%emt 0:01:00]} 1/2-1/2

[Event "EYTCC U18 Girls 2019"]
[Site "Pardubice"]
[Date "2019.07.13"]
[Round "3.31"]
[White "Radeva, Viktoria"]
[Black "Urh, Zala"]
[Result "1-0"]
[ECO "C54"]
[WhiteElo "2247"]
[BlackElo "2072"]
[Annotator "NA"]
[PlyCount "55"]
[EventDate "2019.07.11"]
[EventType "swiss"]
[EventCountry "CZE"]
[SourceTitle "playchess.com"]
[Source "ChessBase"]
[SourceQuality "1"]
[WhiteTeam "Bulgaria"]
[BlackTeam "Slovenia"]
[WhiteTeamCountry "BUL"]
[BlackTeamCountry "SLO"]
[TimeControl "40/5400+30:1800+30"]

1. e4 {[%emt 0:00:00]} e5 {[%emt 0:00:00]} 2. Nf3 {[%emt 0:00:00]} Nc6 {[%emt 0:00:00]} 3. Bc4 {[%emt 0:00:00]} Bc5 {[%emt 0:00:00]} 4. c3 {[%emt 0:00:00]} Nf6 {[%emt 0:00:00]} 5. d4 {[%emt 0:00:00]} exd4 {[%emt 0:00:13]} 6. cxd4 {[%emt 0:00:02]} Bb4+ {[%emt 0:00:09]} 7. Nc3 {[%emt 0:00:05]} Nxe4 {[%emt 0:05:11]} 8. O-O {[%emt 0:00:10]} Bxc3 {[%emt 0:01:51]} 9. d5 {[%emt 0:00:34]} O-O {[%emt 0:09:16]} 10. bxc3 {[%emt 0:16:12]} Ne7 {[%emt 0:02:35]} 11. Qd4 {[%emt 0:13:37]} Nd6 {[%emt 0:03:29]} 12. Bd3 {[%emt 0:01:24]} Ng6 {[%emt 0:04:26]} 13. c4 {[%emt 0:14:40]} b6 {[%emt 0:03:24]} 14. Bb2 {[%emt 0:01:58]} f6 {[%emt 0:00:38]} 15. h4 {[%emt 0:09:45]} Re8 {[%emt 0:08:01]} 16. Rfe1 {[%emt 0:02:32]} Nf7 {[%emt 0:02:45]} 17. Rxe8+ {[%emt 0:11:49]} Qxe8 {[%emt 0:00:08]} 18. Re1 {[%emt 0:04:10]} Qd8 {[%emt 0:06:12]} 19. Ng5 {[%emt 0:06:04]} Nf8 {[%emt 0:03:43]} 20. d6 {[%emt 0:05:09]} Nxg5 {[%emt 0:16:50]} 21. hxg5 {[%emt 0:02:26]} Bb7 {[%emt 0:00:58]} 22. dxc7 {[%emt 0:00:58]} Qxc7 {[%emt 0:00:10]} 23. gxf6 {[%emt 0:00:36]} Ne6 {[%emt 0:02:13]} 24. f7+ {[%emt 0:06:09]} Kxf7 {[%emt 0:00:05]} 25. Rxe6 {[%emt 0:00:54]} Kxe6 {[%emt 0:00:03]} 26. Qg4+ {[%emt 0:00:08]} Ke7 {[%emt 0:01:35]} 27. Qxg7+ {[%emt 0:00:05]} Ke8 {[%emt 0:00:24]} 28. Ba3 {[%emt 0:00:57]} 1-0

[Event "EYTCC U18 Girls 2019"]
[Site "Pardubice"]
[Date "2019.07.13"]
[Round "3.32"]
[White "Hercog, Nusa"]
[Black "Krasteva, Beloslava"]
[Result "1/2-1/2"]
[ECO "D37"]
[WhiteElo "2053"]
[BlackElo "2327"]
[Annotator "NA"]
[PlyCount "102"]
[EventDate "2019.07.11"]
[EventType "swiss"]
[EventCountry "CZE"]
[SourceTitle "playchess.com"]
[Source "ChessBase"]
[SourceQuality "1"]
[WhiteTeam "Slovenia"]
[BlackTeam "Bulgaria"]
[WhiteTeamCountry "SLO"]
[BlackTeamCountry "BUL"]
[TimeControl "40/5400+30:1800+30"]

1. d4 {[%emt 0:00:00]} d5 {[%emt 0:00:00]} 2. c4 {[%emt 0:00:00]} e6 {[%emt 0:00:04]} 3. Nf3 {[%emt 0:00:00]} Nf6 {[%emt 0:00:28]} 4. Nc3 {[%emt 0:00:20]} Be7 {[%emt 0:00:32]} 5. Bf4 {[%emt 0:00:27]} O-O {[%emt 0:00:22]} 6. e3 {[%emt 0:00:19]} c5 {[%emt 0:00:45]} 7. dxc5 {[%emt 0:00:19]} Bxc5 {[%emt 0:00:27]} 8. a3 {[%emt 0:00:24]} Nc6 {[%emt 0:00:42]} 9. Qc2 {[%emt 0:00:31]} Qa5 {[%emt 0:01:14]} 10. Rd1 {[%emt 0:00:43]} Be7 {[%emt 0:20:04]} 11. Be2 {[%emt 0:02:37]} dxc4 {[%emt 0:02:18]} 12. Bxc4 {[%emt 0:00:19]} e5 {[%emt 0:01:09]} 13. Bg3 {[%emt 0:08:22]} Bg4 {[%emt 0:01:05]} 14. O-O {[%emt 0:09:49]} Rac8 {[%emt 0:03:56]} 15. Bd3 {[%emt 0:16:55]} g6 {[%emt 0:11:15]} 16. h3 {[%emt 0:05:41]} Bxf3 {[%emt 0:02:35]} 17. gxf3 {[%emt 0:00:05]} Nh5 {[%emt 0:05:33]} 18. Kg2 {[%emt 0:08:16]} Kh8 {[%emt 0:13:17]} 19. Qb3 {[%emt 0:05:12]} f5 {[%emt 0:06:37]} 20. Nd5 {[%emt 0:12:51]} f4 {[%emt 0:04:31]} 21. Bh2 {[%emt 0:00:24]} Qc5 {[%emt 0:01:44]} 22. Be4 {[%emt 0:04:59]} Bh4 {[%emt 0:11:40]} 23. Rc1 {[%emt 0:04:18]} Na5 {[%emt 0:03:06]} 24. Qa4 {[%emt 0:04:00]} Nc4 {[%emt 0:00:12]} 25. b4 {[%emt 0:02:42]} Qd6 {[%emt 0:01:29]} 26. Rc2 {[%emt 0:04:51]} b5 {[%emt 0:01:22]} 27. Qb3 {[%emt 0:00:36]} Nf6 {[%emt 0:02:15]} 28. Nxf6 {[%emt 0:03:41]} Bxf6 {[%emt 0:00:50]} 29. Rfc1 {[%emt 0:01:54]} Bg7 {[%emt 0:00:58]} 30. Bg1 {[%emt 0:00:48]} Rcd8 {[%emt 0:00:46]} 31. a4 {[%emt 0:02:18]} a6 {[%emt 0:00:28]} 32. axb5 {[%emt 0:00:04]} axb5 {[%emt 0:00:06]} 33. Ra1 {[%emt 0:00:39]} Qf6 {[%emt 0:01:36]} 34. Re1 {[%emt 0:01:43]} Qg5+ {[%emt 0:00:22]} 35. Kh2 {[%emt 0:00:11]} Nd2 {[%emt 0:00:37]} 36. Qe6 {[%emt 0:01:10]} Nxe4 {[%emt 0:01:18]} 37. fxe4 {[%emt 0:00:04]} f3 {[%emt 0:00:28]} 38. Qg4 {[%emt 0:00:03]} Qf6 {[%emt 0:01:24]} 39. Rc5 {[%emt 0:00:33]} Qb6 {[%emt 0:00:42]} 40. Rec1 {[%emt 0:00:26]} Rf7 {[%emt 0:00:53]} 41. Rc6 {[%emt 0:30:43]} Qb7 {[%emt 0:30:26]} 42. Qg5 {[%emt 0:01:11]} Re8 {[%emt 0:00:00]} 43. Qg4 {[%emt 0:00:00]} Bf8 {[%emt 0:00:00]} 44. Re6 {[%emt 0:00:00]} Rxe6 {[%emt 0:00:00]} 45. Qxe6 {[%emt 0:00:00]} Kg8 {[%emt 0:00:00]} 46. Qxe5 {[%emt 0:00:00]} Qd7 {[%emt 0:00:00]} 47. Qd5 {[%emt 0:00:00]} Qxd5 {[%emt 0:00:00]} 48. exd5 {[%emt 0:00:00]} Bxb4 {[%emt 0:00:00]} 49. Kh1 {[%emt 0:00:00]} Rf5 {[%emt 0:00:00]} 50. Rb1 {[%emt 0:00:00]} Bd6 {[%emt 0:00:00]} 51. Bh2 {[%emt 0:00:00]} Bxh2 {[%emt 0:00:00]} 1/2-1/2